fUSD/lending_fUSD_20250321
["ID","MTS","AMOUNT","RATE_DAILY","PERIOD"]
[356517962,1742593838882,-500.0,0.00046575,120]
[356517963,1742593838891,-500.0,0.00046575,120]
[356517964,1742593838900,-500.0,0.00046575,120]
[356517965,1742593838909,-500.0,0.00046575,120]
[356517966,1742593838918,-500.0,0.00046575,120]
[356517967,1742593838927,-706.27,0.00046575,120]
[356517968,1742593838937,-495.88065575,0.00046575,120]
[356517969,1742593838948,-4.11934425,0.00046575,120]
[356517970,1742593838958,-500.0,0.00046575,120]
[356517971,1742593838967,-500.0,0.00046575,120]
[356517972,1742593838977,-500.0,0.00046575,120]
[356517973,1742593838986,-500.0,0.00046575,120]
[356517974,1742593838995,-500.0,0.00046575,120]
[356517975,1742593839003,-500.0,0.00046575,120]
[356517976,1742593839013,-273.43576031,0.00046575,120]
[356517977,1742593839022,-500.0,0.00046575,120]
[356517978,1742593839031,-500.0,0.00046575,120]
[356517979,1742593839040,-514.28686874,0.00046575,120]
[356517980,1742593839049,-500.0,0.00046575,120]
[356517981,1742593839059,-500.0,0.00046575,120]
[356517982,1742593839068,-512.96922462,0.00046575,120]
[356517983,1742593839077,-500.0,0.00046575,120]
[356517984,1742593839086,-500.0,0.00046575,120]
[356517985,1742593839095,-500.0,0.00046575,120]
[356517986,1742593839105,-500.0,0.00046575,120]
[356517987,1742593839114,-500.0,0.00046575,120]
[356517988,1742593839123,-500.0,0.00046575,120]
[356517989,1742593839132,-500.0,0.00046575,120]
[356517990,1742593839141,-500.0,0.00046575,120]
[356517991,1742593839151,-414.59381041,0.00046575,120]
[356517992,1742593839166,-1085.40618959,0.00046575,120]
[356517993,1742593839175,-500.0,0.00046575,120]
[356517994,1742593839185,-500.0,0.00046575,120]
[356517995,1742593839194,-500.0,0.00046575,120]
[356517996,1742593839205,-500.0,0.00046575,120]
[356517997,1742593839215,-500.0,0.00046575,120]
[356517998,1742593839224,-500.0,0.00046575,120]
[356517999,1742593839234,-500.0,0.00046575,120]
[356518000,1742593839244,-500.0,0.00046575,120]
[356518001,1742593839253,-500.0,0.00046575,120]
[356518002,1742593839262,-500.0,0.00046575,120]
[356518003,1742593839272,-500.0,0.00046575,120]
[356518004,1742593839281,-500.0,0.00046575,120]
[356518005,1742593839290,-500.0,0.00046575,2]
[356518006,1742593839300,-500.0,0.00046575,2]
[356518007,1742593839309,-500.0,0.00046575,2]
[356518008,1742593839318,-500.0,0.00046575,2]
[356518009,1742593839328,-500.0,0.00046575,2]
[356518010,1742593839337,-500.0,0.00046575,120]
[356518011,1742593839346,-276.35030022,0.00046575,120]
[356518012,1742593839356,-500.0,0.00046575,120]
[356518013,1742593839566,-500.0,0.00046575,120]
[356518014,1742593839626,-500.0,0.00046575,120]
[356518015,1742593839636,-214.17203019,0.00046575,120]
[356518016,1742593839678,-348.31796981,0.00046575,120]
[356518017,1742593839687,-500.0,0.00046575,120]
[356518018,1742593839696,-500.0,0.00046575,120]
[356518019,1742593839705,-500.0,0.00046575,120]
[356518020,1742593839715,-500.0,0.00046575,120]
[356518021,1742593839724,-500.0,0.00046575,120]
[356518022,1742593839733,-500.0,0.00046575,120]
[356518023,1742593839742,-500.0,0.00046575,120]
[356518024,1742593839751,-500.0,0.00046575,120]
[356518025,1742593839760,-500.0,0.00046575,120]
[356518027,1742593839769,-528.48814408,0.00046575,120]
[356518029,1742593839778,-500.0,0.00046575,120]
[356518030,1742593839787,-500.0,0.00046575,120]
[356518031,1742593839796,-318.62777788,0.00046575,120]
[356518032,1742593839805,-500.0,0.00046575,120]
[356518034,1742593839814,-500.0,0.00046575,120]
[356518035,1742593839824,-551.45,0.00046575,120]
[356518036,1742593839833,-500.0,0.00046575,120]
[356518037,1742593839842,-500.0,0.00046575,120]
[356518038,1742593839851,-500.0,0.00046575,120]
[356518039,1742593839860,-500.0,0.00046575,120]
[356518040,1742593839871,-500.0,0.00046575,120]
[356518041,1742593839880,-500.0,0.00046575,120]
[356518042,1742593839889,-500.0,0.00046575,120]
[356518043,1742593839898,-500.0,0.00046575,120]
[356518045,1742593839908,-500.0,0.00046575,120]
[356518047,1742593839917,-500.0,0.00046575,120]
[356518048,1742593839926,-500.0,0.00046575,120]
[356518049,1742593839936,-500.0,0.00046575,120]
[356518050,1742593839945,-573.19,0.00046575,120]
[356518051,1742593839954,-500.0,0.00046575,120]
[356518052,1742593839963,-500.0,0.00046575,120]
[356518053,1742593839973,-671.31,0.00046575,120]
[356518054,1742593839982,-671.31,0.00046575,120]
[356518055,1742593839991,-500.0,0.00046575,120]
[356518056,1742593839999,-671.31,0.00046575,120]
[356518057,1742593840009,-500.0,0.00046575,120]
[356518058,1742593840018,-500.0,0.00046575,120]
[356518059,1742593840027,-500.0,0.00046575,120]
[356518060,1742593840036,-500.0,0.00046575,120]
[356518061,1742593840045,-500.0,0.00046575,120]
[356518062,1742593840054,-257.53071002,0.00046575,120]
[356518063,1742593840063,-500.0,0.00046575,120]
[356518064,1742593840072,-500.0,0.00046575,120]
[356518065,1742593840081,-500.0,0.00046575,120]
[356518066,1742593840090,-500.0,0.00046575,120]
[356518067,1742593840099,-506.71,0.00046575,120]
[356518068,1742593840108,-500.0,0.00046575,120]
[356518069,1742593840117,-500.0,0.00046575,120]
[356518070,1742593840127,-500.0,0.00046575,120]
[356518071,1742593840136,-500.0,0.00046575,120]
[356518072,1742593840145,-500.0,0.00046575,120]
[356518073,1742593840156,-500.0,0.00046575,120]
[356518074,1742593840166,-500.0,0.00046575,120]
[356518075,1742593840175,-500.0,0.00046575,120]
[356518076,1742593840185,-500.0,0.00046575,120]
[356518077,1742593840194,-500.0,0.00046575,120]
[356518078,1742593840204,-580.26,0.00046575,120]
[356518079,1742593840215,-500.0,0.00046575,120]
[356518080,1742593840225,-500.0,0.00046575,120]
[356518081,1742593840234,-500.0,0.00046575,120]
[356518082,1742593840244,-500.0,0.00046575,120]
[356518083,1742593840254,-500.0,0.00046575,120]
[356518084,1742593840263,-500.0,0.00046575,120]
[356518085,1742593840273,-397.4791001,0.00046575,120]
[356518086,1742593840282,-500.0,0.00046575,120]
[356518087,1742593840292,-500.0,0.00046575,120]
[356518088,1742593840301,-500.0,0.00046575,120]
[356518089,1742593840310,-500.0,0.00046575,120]
[356518090,1742593840319,-500.0,0.00046575,120]
[356518091,1742593840328,-500.0,0.00046575,120]
[356518092,1742593840337,-922.35,0.00046575,120]
[356518093,1742593840347,-500.0,0.00046575,120]
[356518094,1742593840356,-500.0,0.00046575,120]
[356518095,1742593840365,-500.0,0.00046575,120]
[356518096,1742593840375,-500.0,0.00046575,120]
[356518098,1742593840384,-500.0,0.00046575,120]
[356518099,1742593840393,-500.0,0.00046575,120]
[356518100,1742593840402,-500.0,0.00046575,120]
[356518101,1742593840412,-500.0,0.00046575,120]
[356518102,1742593840421,-500.0,0.00046575,120]
[356518103,1742593840430,-360.19929829,0.00046575,120]
[356518104,1742593840459,-139.80070171,0.00046575,120]
[356518105,1742593840469,-500.0,0.00046575,120]
[356518106,1742593840479,-500.0,0.00046575,120]
[356518108,1742593840488,-131.07670111,0.00046575,120]
[356518109,1742593840499,-368.92329889,0.00046575,120]
[356518110,1742593840509,-500.0,0.00046575,120]
[356518111,1742593840518,-500.0,0.00046575,120]
[356518112,1742593840527,-500.0,0.00046575,120]
[356518113,1742593840535,-427.0962426,0.00046575,120]
[356518114,1742593840547,-72.9037574,0.00046575,120]
[356518115,1742593840556,-500.0,0.00046575,120]
[356518116,1742593840566,-500.0,0.00046575,120]
[356518117,1742593840575,-257.6518926,0.00046575,120]
[356518118,1742593840586,-242.3481074,0.00046575,120]
[356518119,1742593840595,-500.0,0.00046575,120]
[356518120,1742593840605,-95.05382221,0.00046575,120]
[356518121,1742593840616,-346.26,0.00046575,120]
[356518122,1742593840628,-58.68617779,0.00046575,120]
[356518123,1742593840637,-500.0,0.00046575,120]
[356518124,1742593840647,-458.58110287,0.00046575,120]
[356518125,1742593840659,-41.41889713,0.00046575,120]
[356518126,1742593840668,-318.64110287,0.00046575,120]
[356518127,1742593840679,-181.35889713,0.00046575,120]
[356518128,1742593840689,-500.0,0.00046575,120]
[356518129,1742593840698,-500.0,0.00046575,120]
[356518130,1742593840708,-500.0,0.00046575,120]
[356518131,1742593840718,-500.0,0.00046575,120]
[356518132,1742593840727,-500.0,0.00046575,120]
[356518133,1742593840736,-500.0,0.00046575,120]
[356518134,1742593840744,-269.98434972,0.00046575,120]
[356518135,1742593840760,-230.01565028,0.00046575,120]
[356518136,1742593840769,-500.0,0.00046575,120]
[356518137,1742593840778,-1390.56,0.00046575,120]
[356518138,1742593840787,-500.0,0.00046575,120]
[356518139,1742593840796,-500.0,0.00046575,120]
[356518140,1742593840804,-500.0,0.00046575,120]
[356518141,1742593840813,-8.44848003,0.00046575,120]
[356518142,1742593841104,-491.55151997,0.00046575,120]
[356518143,1742593841113,-500.0,0.00046575,120]
[356518144,1742593841123,-500.0,0.00046575,120]
[356518145,1742593841132,-500.0,0.00046575,120]
[356518146,1742593841142,-528.07872508,0.00046575,120]
[356518147,1742593841151,-500.0,0.00046575,120]
[356518148,1742593841164,-54.73332787,0.00046575,120]
[356518149,1742593841175,-297.06999999,0.00046575,120]
[356518160,1742593842965,-1000.0,0.00046413,14]
[356518161,1742593842975,-148.19667214,0.00046575,120]
[356518162,1742593842984,-500.0,0.00046575,120]
[356518163,1742593842993,-500.0,0.00046575,120]
[356518164,1742593843002,-500.0,0.00046575,120]
[356518165,1742593843011,-500.0,0.00046575,120]
[356518166,1742593843020,-526.52733611,0.00046575,120]
[356518167,1742593843029,-500.0,0.00046575,120]
[356518168,1742593843038,-500.0,0.00046575,120]
[356518169,1742593843048,-500.0,0.00046575,120]
[356518170,1742593843057,-500.0,0.00046575,120]
[356518171,1742593843066,-500.0,0.00046575,120]
[356518172,1742593843075,-500.0,0.00046575,120]
[356518173,1742593843084,-500.0,0.00046575,120]
[356518174,1742593843093,-500.0,0.00046575,120]
[356518175,1742593843102,-500.0,0.00046575,120]
[356518176,1742593843111,-500.0,0.00046575,120]
[356518177,1742593843120,-500.0,0.00046575,120]
[356518178,1742593843131,-500.0,0.00046575,120]
[356518179,1742593843140,-481.68203243,0.00046575,120]
[356518180,1742593843149,-500.0,0.00046575,120]
[356518181,1742593843161,-521.45999854,0.00046575,120]
[356518182,1742593843170,-463.60185894,0.00046575,120]
[356518183,1742593843301,-36.39814106,0.00046575,120]
[356518184,1742593843313,-500.0,0.00046575,120]
[356518186,1742593843326,-500.0,0.00046575,120]
[356518187,1742593843335,-500.0,0.00046575,120]
[356518188,1742593843344,-500.0,0.00046575,120]
[356518189,1742593843354,-500.0,0.00046575,120]
[356518190,1742593843363,-500.0,0.00046575,120]
[356518191,1742593843372,-500.0,0.00046575,120]
[356518193,1742593843381,-511.26029879,0.00046575,120]
[356518195,1742593843390,-500.0,0.00046575,120]
[356518197,1742593843399,-500.0,0.00046575,120]
[356518199,1742593843408,-500.0,0.00046575,30]
[356518201,1742593843417,-500.0,0.00046575,120]
[356518203,1742593843426,-386.02188605,0.00046575,120]
[356518205,1742593843436,-500.0,0.00046575,120]
[356518207,1742593843446,-500.0,0.00046575,120]
[356518209,1742593843455,-500.0,0.00046575,120]
[356518211,1742593843464,-986.32,0.00046575,120]
[356518213,1742593843473,-500.0,0.00046575,120]
[356518215,1742593843482,-500.0,0.00046575,120]
[356518217,1742593843491,-523.36197866,0.00046575,120]
[356518219,1742593843499,-500.0,0.00046575,120]
[356518221,1742593843509,-500.0,0.00046575,120]
[356518224,1742593843518,-500.0,0.00046575,120]
[356518228,1742593843527,-500.0,0.00046575,120]
[356518230,1742593843537,-500.0,0.00046575,120]
[356518232,1742593843546,-500.15235527,0.00046575,120]
[356518234,1742593843555,-424.38091444,0.00046575,120]
[356518304,1742593844813,-75.61908556,0.00046575,120]
[356518305,1742593844822,-521.92038748,0.00046575,120]
[356518306,1742593844831,-500.0,0.00046575,120]
[356518307,1742593844840,-515.36718134,0.00046575,120]
[356518308,1742593844849,-500.0,0.00046575,120]
[356518309,1742593844859,-420.04334562,0.00046575,120]
[356518311,1742593845839,-79.95665438,0.00046575,120]
[356518312,1742593845849,-366.30733962,0.00046575,120]
[356518313,1742593845903,-133.69266038,0.00046575,120]
[356518314,1742593845912,-500.0,0.00046575,120]
[356518315,1742593845921,-500.0,0.00046575,120]
[356518316,1742593845932,-7.90733962,0.00046575,120]
[356518317,1742593846073,-381.85301604,0.00046575,120]
[356518318,1742593846084,-183.23208263,0.00046575,120]
[356518319,1742593846095,-500.0,0.00046575,120]
[356518320,1742593846104,-194.56451737,0.00046575,120]
[356518498,1742594037202,207.58,0.00026849,2]
[356518499,1742594049760,1130.49331095,0.0004,120]
[356518500,1742594168591,200.0,0.0004,2]
[356518501,1742594215303,192.47,0.0004,2]
[356518502,1742594251619,400.0,0.0004,2]
[356518504,1742594335643,150.0,0.0004,2]
[356518505,1742594349724,350.0,0.0004,2]
[356518506,1742594367982,200.0,0.0004,2]
[356518507,1742594377518,200.0,0.0004,2]
[356518508,1742594531214,200.0,0.0004,2]
[356518509,1742594573234,500.0,0.0004,2]
[356518510,1742594582905,500.0,0.0004,2]
[356518512,1742594641726,350.0,0.00034424,2]
[356518513,1742594641928,350.0,0.00036144,2]
[356518515,1742594743935,152.06,0.00036213,2]
[356518517,1742594761212,350.0,0.00034424,2]
[356518569,1742595032098,-596.33564807,0.00031294,120]
[356518570,1742595032108,-1216.64761331,0.00031294,120]
[356518571,1742595032118,-200.0,0.00040993,2]
[356518572,1742595032127,-200.0,0.00040994,2]
[356518573,1742595032136,-153.0,0.00041,14]
[356518574,1742595032146,-153.0,0.00043151,90]
[356518575,1742595032155,-521.9,0.00043674,2]
[356518576,1742595032164,-150.0,0.00045021,2]
[356518577,1742595032173,-350.0,0.00045092,2]
[356518578,1742595032182,-250.0,0.00045269,2]
[356518579,1742595032192,-17.08461933,0.0004527,2]
[356518580,1742595032203,-1482.91538067,0.0004527,2]
[356518581,1742595032214,-179.46,0.00045303,120]
[356518582,1742595032223,-154.0,0.00045308,90]
[356518583,1742595032232,-1353.22,0.0004532,2]
[356518584,1742595032242,-163.89,0.00045338,2]
[356518585,1742595032252,-1000.0,0.00045354,2]
[356518586,1742595032261,-195.69,0.00045464,2]
[356518587,1742595032270,-187.14,0.00045464,2]
[356518588,1742595032279,-195.69,0.0004556,2]
[356518589,1742595032289,-195.69,0.00045656,2]
[356518590,1742595032298,-166.794,0.00045728,2]
[356518591,1742595032308,-195.69,0.00045752,2]
[356518592,1742595032318,-195.69,0.00045847,2]
[356518593,1742595032327,-110.42467603,0.000459,10]
[356518594,1742595032339,-97.79015825,0.000459,10]
[356518596,1742595032348,-406.62984175,0.00045938,2]
[356518599,1742595032370,-115.27015825,0.00045938,2]
[356518602,1742595032380,-195.69,0.00045943,2]
[356518603,1742595032389,-30941.99,0.00046,30]
[356518605,1742595032399,-150.0,0.00046,4]
[356518608,1742595032408,-195.69,0.00046039,2]
[356518609,1742595032419,-195.69,0.00046134,2]
[356518612,1742595032431,-150.0,0.00046224,2]
[356518614,1742595032440,-195.69,0.0004623,2]
[356518616,1742595032450,-150.0,0.00046261,2]
[356518617,1742595032461,-4630.6669,0.00046275,2]
[356518619,1742595032471,-150.0,0.00046276,2]
[356518621,1742595032480,-150.0,0.00046299,14]
[356518623,1742595032490,-150.0,0.00046307,2]
[356518625,1742595032499,-150.0,0.00046314,14]
[356518627,1742595032509,-150.0,0.00046321,2]
[356518629,1742595032518,-195.69,0.00046326,2]
[356518631,1742595032527,-151.773,0.00046326,76]
[356518633,1742595032536,-150.0,0.00046349,2]
[356518635,1742595032546,-150.0,0.00046352,2]
[356518637,1742595032555,-252.0,0.00046365,7]
[356518639,1742595032565,-150.0,0.00046374,2]
[356518641,1742595032574,-416.44086832,0.00046374,120]
[356518643,1742595032584,-150.0,0.00046375,2]
[356518645,1742595032593,-500.0,0.00046375,120]
[356518646,1742595032602,-500.0,0.00046375,120]
[356518647,1742595032611,-500.0,0.00046375,120]
[356518648,1742595032622,-500.0,0.00046375,120]
[356518649,1742595032633,-500.0,0.00046375,120]
[356518650,1742595032643,-500.0,0.00046375,120]
[356518651,1742595032654,-500.0,0.00046375,120]
[356518652,1742595032663,-500.0,0.00046375,120]
[356518653,1742595032673,-500.0,0.00046375,120]
[356518654,1742595032682,-500.0,0.00046375,120]
[356518655,1742595032691,-500.0,0.00046375,120]
[356518656,1742595032701,-500.0,0.00046375,120]
[356518657,1742595032710,-500.0,0.00046375,120]
[356518658,1742595032719,-500.0,0.00046375,120]
[356518659,1742595032729,-500.0,0.00046375,120]
[356518660,1742595032738,-500.0,0.00046375,120]
[356518661,1742595032748,-500.0,0.00046375,120]
[356518662,1742595032757,-500.0,0.00046375,120]
[356518663,1742595032767,-500.0,0.00046375,120]
[356518664,1742595032777,-500.0,0.00046375,120]
[356518665,1742595032786,-500.0,0.00046375,120]
[356518666,1742595032796,-500.0,0.00046375,120]
[356518667,1742595032806,-500.0,0.00046375,120]
[356518668,1742595032815,-500.0,0.00046375,120]
[356518669,1742595032825,-500.0,0.00046375,120]
[356518670,1742595032834,-500.0,0.00046375,120]
[356518671,1742595032849,-500.0,0.00046375,120]
[356518672,1742595032858,-500.0,0.00046375,120]
[356518673,1742595032867,-500.0,0.00046375,120]
[356518674,1742595032878,-500.0,0.00046375,120]
[356518675,1742595032887,-500.0,0.00046375,120]
[356518676,1742595032897,-500.0,0.00046375,120]
[356518677,1742595032908,-500.0,0.00046375,120]
[356518678,1742595032919,-500.0,0.00046375,120]
[356518679,1742595032929,-500.0,0.00046375,120]
[356518680,1742595032938,-500.0,0.00046375,120]
[356518681,1742595032948,-500.0,0.00046375,120]
[356518682,1742595032958,-500.0,0.00046375,120]
[356518683,1742595032967,-500.0,0.00046375,120]
[356518684,1742595032976,-500.0,0.00046375,120]
[356518685,1742595032985,-500.0,0.00046375,120]
[356518686,1742595032994,-500.0,0.00046375,120]
[356518687,1742595033004,-500.0,0.00046375,120]
[356518688,1742595033014,-500.0,0.00046375,120]
[356518689,1742595033023,-821.0,0.00046375,120]
[356518690,1742595033033,-452.672,0.00046375,2]
[356518691,1742595033046,-150.0,0.00046377,2]
[356518692,1742595033055,-812.66728434,0.00046395,15]
[356518693,1742595033064,-150.0,0.00046405,2]
[356518694,1742595033074,-150.0,0.0004641,2]
[356518695,1742595033083,-174.75403174,0.00046413,2]
[356518696,1742595033093,-150.0,0.00046415,2]
[356518697,1742595033102,-195.69,0.00046422,2]
[356518698,1742595033112,-151.38519219,0.0004643,14]
[356518699,1742595033122,-150.0,0.0004644,2]
[356518700,1742595033131,-150.0,0.00046445,2]
[356518701,1742595033141,-150.0,0.0004645,2]
[356518702,1742595033150,-150.0,0.00046451,2]
[356518703,1742595033160,-150.0,0.00046464,2]
[356518704,1742595033169,-2950.4012,0.00046465,2]
[356518705,1742595033179,-3626.7566,0.00046465,2]
[356518706,1742595033188,-575.4735,0.00046465,2]
[356518707,1742595033197,-2500.0,0.00046465,2]
[356518708,1742595033207,-212.67349822,0.00046467,15]
[356518709,1742595033216,-166.95665356,0.00046467,28]
[356518710,1742595033226,-150.0,0.00046468,2]
[356518711,1742595033235,-150.0,0.00046473,2]
[356518712,1742595033245,-1000.0,0.00046474,7]
[356518713,1742595033255,-167.8332856,0.00046475,24]
[356518714,1742595033264,-1156.65123672,0.00046475,18]
[356518715,1742595033274,-269.59311043,0.00046475,24]
[356518716,1742595033283,-323.3563,0.00046475,2]
[356518717,1742595033293,-4456.18582051,0.00046475,120]
[356518721,1742595040155,-522.0,0.00046475,120]
[356518722,1742595040502,-12019.25015,0.00046475,120]
[356518735,1742595044069,-550.80393589,0.00046475,120]
[356518736,1742595045979,-3915.56595268,0.00046475,120]
[356518738,1742595046407,-347.14482896,0.00046475,120]
[356518739,1742595046418,-487.50656928,0.00046475,120]
[356518740,1742595046433,-1408.82174182,0.00046475,120]
[356518741,1742595101913,-3798.0,0.000425,5]
[356518742,1742595101943,-469.71,0.00043654,2]
[356518743,1742595101970,-205.6383979,0.00045177,4]
[356518744,1742595101999,-469.71,0.00045918,2]
[356518745,1742595102027,-300.0,0.00046474,5]
[356518746,1742595102054,-150.0,0.00046495,2]
[356518747,1742595102080,-1000.0,0.000465,7]
[356518748,1742595102105,-150.0,0.00046503,14]
[356518749,1742595102130,-150.0,0.00046504,14]
[356518750,1742595102156,-150.0,0.00046517,2]
[356518751,1742595102183,-195.69,0.00046517,2]
[356518752,1742595102210,-150.0,0.00046521,2]
[356518753,1742595102237,-150.0,0.00046526,2]
[356518754,1742595102263,-150.443175,0.00046548,30]
[356518755,1742595102288,-150.0,0.00046548,30]
[356518756,1742595102314,-150.73462713,0.00046548,30]
[356518757,1742595102340,-150.0,0.00046548,30]
[356518758,1742595102365,-150.0,0.00046548,30]
[356518759,1742595102390,-150.0,0.00046548,30]
[356518760,1742595102418,-150.0,0.00046555,2]
[356518761,1742595102443,-150.443175,0.00046563,30]
[356518762,1742595102468,-292.74592426,0.00046564,120]
[356518763,1742595102495,-500.0,0.00046564,120]
[356518764,1742595102519,-572.80310997,0.00046564,120]
[356518765,1742595102545,-500.0,0.00046564,120]
[356518766,1742595102572,-278.29170307,0.00046564,120]
[356518767,1742595102599,-500.0,0.00046564,120]
[356518768,1742595102626,-500.0,0.00046564,120]
[356518769,1742595102649,-166.81688241,0.00046565,7]
[356518770,1742595102675,-13148.97300526,0.00046565,3]
[356518771,1742595103765,-25000.0,0.00046565,3]
[356518772,1742595104800,-25000.0,0.00046565,3]
[356518773,1742595105792,-25000.0,0.00046565,3]
[356518774,1742595129386,-958.475,0.00046465,2]
[356518775,1742595129413,-24041.525,0.00046565,3]
[356518776,1742595130168,-25000.0,0.00046565,3]
[356518777,1742595131294,-25000.0,0.00046565,3]
[356518778,1742595131959,-25000.0,0.00046565,3]
[356518779,1742595132808,-25000.0,0.00046565,3]
[356518780,1742595133675,-25000.0,0.00046565,3]
[356518781,1742595134794,-3968.24793374,0.00046565,3]
[356518782,1742595134820,-150.0,0.00046567,30]
[356518783,1742595134846,-5590.4579062,0.00046571,2]
[356518784,1742595134871,-500.0,0.00046573,2]
[356518785,1742595134899,-10700.57680011,0.00046575,38]
[356518786,1742595134924,-821.0,0.00046575,7]
[356518787,1742595134952,-500.0,0.00046575,2]
[356518788,1742595134979,-500.0,0.00046575,120]
[356518789,1742595135003,-481.39377699,0.00046575,16]
[356518790,1742595135028,-500.0,0.00046575,120]
[356518791,1742595135054,-500.0,0.00046575,120]
[356518792,1742595135079,-500.0,0.00046575,120]
[356518793,1742595135104,-288.32358296,0.00046575,120]
[356518794,1742595135658,-211.67641704,0.00046575,120]
[356518795,1742595135683,-474.37682779,0.00046575,120]
[356518796,1742595135707,-500.0,0.00046575,2]
[356518797,1742595135734,-500.0,0.00046575,120]
[356518798,1742595135758,-500.0,0.00046575,120]
[356518799,1742595135783,-500.0,0.00046575,120]
[356518800,1742595135807,-539.74050621,0.00046575,120]
[356518801,1742595135832,-500.0,0.00046575,120]
[356518802,1742595135857,-500.0,0.00046575,120]
[356518803,1742595135883,-500.0,0.00046575,120]
[356518804,1742595135914,-518.98957618,0.00046575,120]
[356518805,1742595135945,-500.0,0.00046575,120]
[356518806,1742595135973,-500.0,0.00046575,120]
[356518807,1742595136001,-500.0,0.00046575,120]
[356518808,1742595136030,-500.0,0.00046575,120]
[356518809,1742595136056,-500.0,0.00046575,120]
[356518810,1742595136082,-500.0,0.00046575,120]
[356518811,1742595136108,-500.0,0.00046575,120]
[356518812,1742595136135,-500.0,0.00046575,120]
[356518813,1742595136162,-500.0,0.00046575,120]
[356518814,1742595136187,-500.0,0.00046575,120]
[356518815,1742595136213,-500.0,0.00046575,120]
[356518816,1742595136239,-500.0,0.00046575,120]
[356518817,1742595136264,-500.0,0.00046575,120]
[356518818,1742595136290,-500.0,0.00046575,120]
[356518819,1742595136315,-500.0,0.00046575,120]
[356518820,1742595136340,-520.07868526,0.00046575,120]
[356518821,1742595136365,-500.0,0.00046575,120]
[356518822,1742595136390,-500.0,0.00046575,120]
[356518823,1742595136415,-500.0,0.00046575,120]
[356518824,1742595136441,-500.0,0.00046575,120]
[356518825,1742595136470,-500.0,0.00046575,120]
[356518826,1742595136496,-500.0,0.00046575,120]
[356518827,1742595136526,-539.14913064,0.00046575,120]
[356518828,1742595136552,-518.31532646,0.00046575,120]
[356518829,1742595136579,-517.7136462,0.00046575,120]
[356518830,1742595136606,-500.0,0.00046575,120]
[356518831,1742595136632,-500.0,0.00046575,120]
[356518832,1742595136659,-500.0,0.00046575,120]
[356518833,1742595136685,-500.0,0.00046575,120]
[356518834,1742595136711,-500.0,0.00046575,120]
[356518835,1742595136737,-500.0,0.00046575,120]
[356518836,1742595136762,-500.0,0.00046575,120]
[356518837,1742595136787,-500.0,0.00046575,120]
[356518838,1742595136812,-500.0,0.00046575,120]
[356518839,1742595136838,-500.0,0.00046575,120]
[356518840,1742595136870,-500.0,0.00046575,120]
[356518841,1742595136894,-500.0,0.00046575,16]
[356518842,1742595136920,-505.48901059,0.00046575,120]
[356518843,1742595136949,-500.0,0.00046575,120]
[356518844,1742595136976,-154.47087363,0.00046575,120]
[356518845,1742595137544,-345.52912637,0.00046575,120]
[356518846,1742595137569,-500.0,0.00046575,120]